[Event "Titled Tuesday Blitz November 2 2021"]
[White "Przybylski, Wojciech"]
[Black "Sychev, Klementy"]
[WhiteFideId "1117599"]
[BlackFideId "4114060"]
[WhiteElo "2247"]
[BlackElo "2615"]
[Result "1/2-1/2"]
[Round "07"]
[TimeControl "180+1"]
[Date "2021.11.02"]
[WhiteClock "0:00:14"]
[BlackClock "0:00:10"]

1. e4 {[%clk 0:03:00]}  Nc6 {[%clk 0:02:59]} 2. Nf3 {[%clk 0:03:00]}  d6 {[%clk 0:02:59]} 3. d4 {[%clk 0:02:57]}  Nf6 {[%clk 0:02:59]} 4. Nc3 {[%clk 0:02:56]}  g6 {[%clk 0:02:59]} 5. h3 {[%clk 0:02:53]}  Bg7 {[%clk 0:02:58]} 6. Be3 {[%clk 0:02:53]}  O-O {[%clk 0:02:57]} 7. Be2 {[%clk 0:02:53]}  e5 {[%clk 0:02:54]} 8. dxe5 {[%clk 0:02:52]}  dxe5 {[%clk 0:02:48]} 9. O-O {[%clk 0:02:50]}  Be6 {[%clk 0:02:48]} 10. Nd2 {[%clk 0:02:29]}  Nd4 {[%clk 0:02:46]} 11. Bc4 {[%clk 0:02:29]}  Qe7 {[%clk 0:02:30]} 12. Nd5 {[%clk 0:02:10]}  Nxd5 {[%clk 0:02:23]} 13. Bxd5 {[%clk 0:01:58]}  Bxd5 {[%clk 0:01:51]} 14. exd5 {[%clk 0:01:58]}  Rad8 {[%clk 0:01:45]} 15. Ne4 {[%clk 0:01:47]}  c6 {[%clk 0:01:32]} 16. d6 {[%clk 0:01:36]}  Qe6 {[%clk 0:01:29]} 17. c3 {[%clk 0:01:33]}  Nf5 {[%clk 0:01:27]} 18. Bxa7 {[%clk 0:01:32]}  Nxd6 {[%clk 0:01:20]} 19. Nxd6 {[%clk 0:01:28]}  Rxd6 {[%clk 0:01:20]} 20. Qe2 {[%clk 0:01:27]}  Ra8 {[%clk 0:01:15]} 21. Bc5 {[%clk 0:01:23]}  Rd5 {[%clk 0:01:15]} 22. Be3 {[%clk 0:01:16]}  f5 {[%clk 0:01:12]} 23. c4 {[%clk 0:01:15]}  Rd7 {[%clk 0:01:11]} 24. b3 {[%clk 0:01:14]}  Re8 {[%clk 0:01:01]} 25. Rad1 {[%clk 0:01:12]}  Rf7 {[%clk 0:01:00]} 26. Bc5 {[%clk 0:01:07]}  e4 {[%clk 0:00:59]} 27. Bd4 {[%clk 0:01:00]}  f4 {[%clk 0:00:54]} 28. Bxg7 {[%clk 0:00:44]}  Kxg7 {[%clk 0:00:54]} 29. Rfe1 {[%clk 0:00:40]}  Qe5 {[%clk 0:00:31]} 30. Rd2 {[%clk 0:00:28]}  f3 {[%clk 0:00:26]} 31. Qe3 {[%clk 0:00:23]}  fxg2 {[%clk 0:00:22]} 32. Qd4 {[%clk 0:00:21]}  Kh6 {[%clk 0:00:06]} 33. Qxe5 {[%clk 0:00:20]}  Rxe5 {[%clk 0:00:06]} 34. Kxg2 {[%clk 0:00:20]}  Rf4 {[%clk 0:00:05]} 35. Re3 {[%clk 0:00:19]}  b5 {[%clk 0:00:05]} 36. cxb5 {[%clk 0:00:19]}  cxb5 {[%clk 0:00:05]} 37. a4 {[%clk 0:00:14]}  bxa4 {[%clk 0:00:05]} 38. bxa4 {[%clk 0:00:14]}  Rg5+ {[%clk 0:00:05]} 39. Kf1 {[%clk 0:00:12]}  Ra5 {[%clk 0:00:05]} 40. Rd4 {[%clk 0:00:13]}  Kg5 {[%clk 0:00:02]} 41. Rdxe4 {[%clk 0:00:12]}  Rxa4 {[%clk 0:00:03]} 42. Rxa4 {[%clk 0:00:12]}  Rxa4 {[%clk 0:00:03]} 43. Kg2 {[%clk 0:00:12]}  Kh6 {[%clk 0:00:03]} 44. Rg3 {[%clk 0:00:12]}  Ra6 {[%clk 0:00:03]} 45. Re3 {[%clk 0:00:12]}  Kg7 {[%clk 0:00:03]} 46. Rd3 {[%clk 0:00:12]}  h5 {[%clk 0:00:03]} 47. Re3 {[%clk 0:00:12]}  Kh6 {[%clk 0:00:04]} 48. Rg3 {[%clk 0:00:12]}  Ra5 {[%clk 0:00:04]} 49. Rd3 {[%clk 0:00:12]}  Ra4 {[%clk 0:00:04]} 50. Rc3 {[%clk 0:00:12]}  Kg5 {[%clk 0:00:05]} 51. Rb3 {[%clk 0:00:13]}  Kf5 {[%clk 0:00:05]} 52. Rf3+ {[%clk 0:00:13]}  Kg5 {[%clk 0:00:05]} 53. Rg3+ {[%clk 0:00:13]}  Kh6 {[%clk 0:00:06]} 54. Rd3 {[%clk 0:00:13]}  Rb4 {[%clk 0:00:06]} 55. Rc3 {[%clk 0:00:13]}  Rb5 {[%clk 0:00:06]} 56. Rd3 {[%clk 0:00:14]}  Rf5 {[%clk 0:00:07]} 57. Rc3 {[%clk 0:00:14]}  Kg5 {[%clk 0:00:07]} 58. Rc4 {[%clk 0:00:14]}  Kf6 {[%clk 0:00:07]} 59. Kg3 {[%clk 0:00:14]}  Kg7 {[%clk 0:00:07]} 60. h4 {[%clk 0:00:13]}  Kh6 {[%clk 0:00:07]} 61. Rc6 {[%clk 0:00:13]}  Rd5 {[%clk 0:00:07]} 62. Rc3 {[%clk 0:00:13]}  Rd4 {[%clk 0:00:07]} 63. Rb3 {[%clk 0:00:12]}  Rg4+ {[%clk 0:00:07]} 64. Kh3 {[%clk 0:00:12]}  Kg7 {[%clk 0:00:08]} 65. Rb6 {[%clk 0:00:11]}  Kf7 {[%clk 0:00:07]} 66. Ra6 {[%clk 0:00:12]}  Rf4 {[%clk 0:00:07]} 67. Kg3 {[%clk 0:00:11]}  Rc4 {[%clk 0:00:07]} 68. Rb6 {[%clk 0:00:10]}  Kg7 {[%clk 0:00:07]} 69. f3 {[%clk 0:00:10]}  Rd4 {[%clk 0:00:07]} 70. Ra6 {[%clk 0:00:11]}  Rd7 {[%clk 0:00:06]} 71. Rb6 {[%clk 0:00:11]}  Re7 {[%clk 0:00:07]} 72. Ra6 {[%clk 0:00:11]}  Rc7 {[%clk 0:00:07]} 73. Rb6 {[%clk 0:00:11]}  Ra7 {[%clk 0:00:07]} 74. Rc6 {[%clk 0:00:12]}  Re7 {[%clk 0:00:07]} 75. Rb6 {[%clk 0:00:12]}  Rf7 {[%clk 0:00:08]} 76. Rc6 {[%clk 0:00:12]}  Re7 {[%clk 0:00:08]} 77. Rb6 {[%clk 0:00:13]}  Rf7 {[%clk 0:00:08]} 78. Ra6 {[%clk 0:00:13]}  Kh7 {[%clk 0:00:08]} 79. Rc6 {[%clk 0:00:13]}  Rg7 {[%clk 0:00:09]} 80. Rd6 {[%clk 0:00:13]}  Kh6 {[%clk 0:00:09]} 81. Rc6 {[%clk 0:00:13]}  Re7 {[%clk 0:00:09]} 82. Rb6 {[%clk 0:00:14]}  Kg7 {[%clk 0:00:10]} 83. Ra6 {[%clk 0:00:14]}  Rf7 {[%clk 0:00:10]} 84. Rb6 {[%clk 0:00:14]}  Re7 {[%clk 0:00:10]} 1/2-1/2


[Site "https://www.chess.com"]

[Event "Titled Tuesday Blitz November 2 2021"]
[White "Rozman, Levy"]
[Black "Cunjalo, Faris"]
[WhiteFideId "2039877"]
[BlackFideId "14410710"]
[WhiteElo "2376"]
[BlackElo "2234"]
[Result "0-1"]
[Round "07"]
[TimeControl "180+1"]
[Date "2021.11.02"]
[WhiteClock "0:00:02"]
[BlackClock "0:00:38"]

1. d4 {[%clk 0:03:00]}  d5 {[%clk 0:02:59]} 2. c4 {[%clk 0:03:00]}  e6 {[%clk 0:03:00]} 3. Nf3 {[%clk 0:03:00]}  Nf6 {[%clk 0:03:00]} 4. Nc3 {[%clk 0:03:00]}  a6 {[%clk 0:03:00]} 5. cxd5 {[%clk 0:02:54]}  exd5 {[%clk 0:03:01]} 6. Bg5 {[%clk 0:02:54]}  c6 {[%clk 0:03:01]} 7. e3 {[%clk 0:02:54]}  Bd6 {[%clk 0:02:53]} 8. Bd3 {[%clk 0:02:53]}  Be6 {[%clk 0:02:54]} 9. O-O {[%clk 0:02:51]}  Nbd7 {[%clk 0:02:54]} 10. Rc1 {[%clk 0:02:46]}  h6 {[%clk 0:02:54]} 11. Bf4 {[%clk 0:02:46]}  Qc7 {[%clk 0:02:53]} 12. Bxd6 {[%clk 0:02:38]}  Qxd6 {[%clk 0:02:54]} 13. Na4 {[%clk 0:02:31]}  O-O {[%clk 0:02:52]} 14. a3 {[%clk 0:02:25]}  Rfe8 {[%clk 0:02:44]} 15. Qb3 {[%clk 0:02:20]}  Rab8 {[%clk 0:02:37]} 16. Nb6 {[%clk 0:02:04]}  Bg4 {[%clk 0:02:31]} 17. Nd2 {[%clk 0:01:55]}  Nxb6 {[%clk 0:02:24]} 18. Qxb6 {[%clk 0:01:56]}  Nd7 {[%clk 0:02:25]} 19. Qa5 {[%clk 0:01:50]}  Qf6 {[%clk 0:02:14]} 20. Qc7 {[%clk 0:01:43]}  Bf5 {[%clk 0:02:11]} 21. Bxf5 {[%clk 0:01:39]}  Qxf5 {[%clk 0:02:12]} 22. Nf3 {[%clk 0:01:29]}  f6 {[%clk 0:01:51]} 23. b4 {[%clk 0:01:26]}  Nf8 {[%clk 0:01:51]} 24. a4 {[%clk 0:01:20]}  Ne6 {[%clk 0:01:51]} 25. Qb6 {[%clk 0:01:17]}  Re7 {[%clk 0:01:15]} 26. Rxc6 {[%clk 0:01:12]}  Rbe8 {[%clk 0:01:09]} 27. Rcc1 {[%clk 0:01:04]}  h5 {[%clk 0:01:07]} 28. b5 {[%clk 0:00:56]}  axb5 {[%clk 0:01:08]} 29. Qxb5 {[%clk 0:00:54]}  g5 {[%clk 0:01:09]} 30. Qb1 {[%clk 0:00:53]}  Ng7 {[%clk 0:01:03]} 31. Qxf5 {[%clk 0:00:50]}  Nxf5 {[%clk 0:01:04]} 32. Rc5 {[%clk 0:00:50]}  Rd7 {[%clk 0:01:05]} 33. Rb1 {[%clk 0:00:48]}  Ra8 {[%clk 0:01:05]} 34. a5 {[%clk 0:00:48]}  Ne7 {[%clk 0:01:03]} 35. Rbb5 {[%clk 0:00:44]}  Kf7 {[%clk 0:01:01]} 36. Ne1 {[%clk 0:00:39]}  Ke6 {[%clk 0:01:00]} 37. Nd3 {[%clk 0:00:37]}  Nc6 {[%clk 0:00:59]} 38. Rc3 {[%clk 0:00:28]}  Kf7 {[%clk 0:00:59]} 39. Nc5 {[%clk 0:00:27]}  Re7 {[%clk 0:00:47]} 40. Nxb7 {[%clk 0:00:27]}  Nxd4 {[%clk 0:00:47]} 41. Nd6+ {[%clk 0:00:18]}  Kg6 {[%clk 0:00:47]} 42. Rb2 {[%clk 0:00:13]}  Rxa5 {[%clk 0:00:48]} 43. Rc1 {[%clk 0:00:08]}  Ne6 {[%clk 0:00:43]} 44. Rd2 {[%clk 0:00:04]}  Rd7 {[%clk 0:00:39]} 45. Nc4 {[%clk 0:00:03]}  Rc5 {[%clk 0:00:39]} 46. Kf1 {[%clk 0:00:02]}  Rdc7 {[%clk 0:00:38]} 0-1


[Site "https://www.chess.com"]

[Event "Titled Tuesday Blitz November 2 2021"]
[White "Smirnov, Pavel"]
[Black "Andreikin, Dmitry"]
[WhiteFideId "4123425"]
[BlackFideId "4158814"]
[WhiteElo "2571"]
[BlackElo "2736"]
[Result "0-1"]
[Round "07"]
[TimeControl "180+1"]
[Date "2021.11.02"]
[WhiteClock "0:00:02"]
[BlackClock "0:00:35"]

1. d4 {[%clk 0:03:00]}  g6 {[%clk 0:03:00]} 2. e4 {[%clk 0:03:00]}  Bg7 {[%clk 0:03:01]} 3. Nc3 {[%clk 0:03:01]}  c6 {[%clk 0:03:01]} 4. f4 {[%clk 0:03:01]}  Qb6 {[%clk 0:03:00]} 5. Nf3 {[%clk 0:02:54]}  Nh6 {[%clk 0:03:00]} 6. Be2 {[%clk 0:02:51]}  d5 {[%clk 0:02:58]} 7. e5 {[%clk 0:02:49]}  Bg4 {[%clk 0:02:58]} 8. Na4 {[%clk 0:02:47]}  Qa5+ {[%clk 0:02:56]} 9. c3 {[%clk 0:02:48]}  Nd7 {[%clk 0:02:56]} 10. b4 {[%clk 0:02:44]}  Qc7 {[%clk 0:02:56]} 11. Be3 {[%clk 0:02:38]}  a5 {[%clk 0:02:54]} 12. a3 {[%clk 0:02:37]}  O-O {[%clk 0:02:49]} 13. O-O {[%clk 0:02:36]}  e6 {[%clk 0:02:46]} 14. h3 {[%clk 0:02:33]}  Bxf3 {[%clk 0:02:43]} 15. Bxf3 {[%clk 0:02:33]}  f5 {[%clk 0:02:37]} 16. g4 {[%clk 0:02:28]}  Ra7 {[%clk 0:02:27]} 17. Nc5 {[%clk 0:02:21]}  Kf7 {[%clk 0:02:25]} 18. g5 {[%clk 0:02:13]}  Ng8 {[%clk 0:02:24]} 19. h4 {[%clk 0:02:10]}  Rfa8 {[%clk 0:02:23]} 20. a4 {[%clk 0:01:50]}  Nb6 {[%clk 0:02:18]} 21. bxa5 {[%clk 0:01:30]}  Nc4 {[%clk 0:02:17]} 22. Bf2 {[%clk 0:01:26]}  Bf8 {[%clk 0:02:15]} 23. h5 {[%clk 0:01:20]}  Rxa5 {[%clk 0:02:10]} 24. Kg2 {[%clk 0:01:16]}  b6 {[%clk 0:01:34]} 25. hxg6+ {[%clk 0:01:12]}  hxg6 {[%clk 0:01:34]} 26. Nd3 {[%clk 0:01:06]}  Qa7 {[%clk 0:01:30]} 27. Rh1 {[%clk 0:01:01]}  Rxa4 {[%clk 0:01:30]} 28. Rh7+ {[%clk 0:01:00]}  Bg7 {[%clk 0:01:30]} 29. Rb1 {[%clk 0:00:34]}  Ra2 {[%clk 0:01:30]} 30. Kg3 {[%clk 0:00:31]}  Rd2 {[%clk 0:01:30]} 31. Qf1 {[%clk 0:00:29]}  Qa3 {[%clk 0:01:29]} 32. Nb4 {[%clk 0:00:20]}  Qxc3 {[%clk 0:01:25]} 33. Nxc6 {[%clk 0:00:20]}  Raa2 {[%clk 0:01:02]} 34. Nd8+ {[%clk 0:00:15]}  Ke8 {[%clk 0:01:02]} 35. Rxg7 {[%clk 0:00:15]}  Rxf2 {[%clk 0:01:00]} 36. Rxg8+ {[%clk 0:00:14]}  Kd7 {[%clk 0:00:59]} 37. Qxf2 {[%clk 0:00:14]}  Rxf2 {[%clk 0:00:58]} 38. Kxf2 {[%clk 0:00:14]}  Qc2+ {[%clk 0:00:57]} 39. Be2 {[%clk 0:00:11]}  Qxb1 {[%clk 0:00:55]} 40. Nf7 {[%clk 0:00:10]}  Qe4 {[%clk 0:00:49]} 41. Rxg6 {[%clk 0:00:10]}  Qxf4+ {[%clk 0:00:48]} 42. Ke1 {[%clk 0:00:07]}  Qd2+ {[%clk 0:00:48]} 43. Kf1 {[%clk 0:00:06]}  Ne3+ {[%clk 0:00:48]} 44. Kf2 {[%clk 0:00:06]}  Ng4+ {[%clk 0:00:48]} 45. Kf1 {[%clk 0:00:04]}  Qf4+ {[%clk 0:00:46]} 46. Ke1 {[%clk 0:00:03]}  Qc1+ {[%clk 0:00:46]} 47. Bd1 {[%clk 0:00:03]}  Ne3 {[%clk 0:00:45]} 48. Ke2 {[%clk 0:00:03]}  Nxd1 {[%clk 0:00:43]} 49. Rg7 {[%clk 0:00:04]}  Qc2+ {[%clk 0:00:40]} 50. Ke1 {[%clk 0:00:03]}  Nc3 {[%clk 0:00:39]} 51. Nd6+ {[%clk 0:00:03]}  Kc6 {[%clk 0:00:38]} 52. Kf1 {[%clk 0:00:03]}  Ne4 {[%clk 0:00:35]} 53. g6 {[%clk 0:00:02]}  Qf2# {[%clk 0:00:35]} 0-1


[Site "https://www.chess.com"]

[Event "Titled Tuesday Blitz November 2 2021"]
[White "Sorokin, Aleksey"]
[Black "Schmakel, Sam"]
[WhiteFideId "24176460"]
[BlackFideId "2039311"]
[WhiteElo "2476"]
[BlackElo "2356"]
[Result "1-0"]
[Round "07"]
[TimeControl "180+1"]
[Date "2021.11.02"]
[WhiteClock "0:00:31"]
[BlackClock "0:00:02"]

1. e4 {[%clk 0:03:00]}  c5 {[%clk 0:02:58]} 2. Nf3 {[%clk 0:03:00]}  e6 {[%clk 0:02:58]} 3. d4 {[%clk 0:03:00]}  cxd4 {[%clk 0:02:59]} 4. Nxd4 {[%clk 0:03:01]}  Nc6 {[%clk 0:02:59]} 5. Nc3 {[%clk 0:03:00]}  Qc7 {[%clk 0:03:00]} 6. Be3 {[%clk 0:03:00]}  a6 {[%clk 0:03:01]} 7. Qf3 {[%clk 0:03:00]}  Nf6 {[%clk 0:03:00]} 8. O-O-O {[%clk 0:02:59]}  Ne5 {[%clk 0:02:56]} 9. Qg3 {[%clk 0:02:58]}  b5 {[%clk 0:02:56]} 10. f4 {[%clk 0:02:54]}  Neg4 {[%clk 0:02:55]} 11. e5 {[%clk 0:02:47]}  Nxe3 {[%clk 0:02:46]} 12. Qxe3 {[%clk 0:02:46]}  b4 {[%clk 0:02:46]} 13. Ncb5 {[%clk 0:02:43]}  axb5 {[%clk 0:02:27]} 14. Nxb5 {[%clk 0:02:43]}  Qc6 {[%clk 0:02:18]} 15. exf6 {[%clk 0:02:39]}  gxf6 {[%clk 0:02:08]} 16. Kb1 {[%clk 0:02:34]}  Ba6 {[%clk 0:01:44]} 17. Nd4 {[%clk 0:02:28]}  Qb6 {[%clk 0:01:39]} 18. Bxa6 {[%clk 0:02:11]}  Qxa6 {[%clk 0:01:40]} 19. Qb3 {[%clk 0:02:11]}  Bc5 {[%clk 0:01:41]} 20. Nf3 {[%clk 0:02:07]}  Ke7 {[%clk 0:01:20]} 21. Rd2 {[%clk 0:02:03]}  Ra7 {[%clk 0:01:19]} 22. Rhd1 {[%clk 0:01:59]}  Rha8 {[%clk 0:01:19]} 23. f5 {[%clk 0:01:59]}  Qxa2+ {[%clk 0:01:10]} 24. Qxa2 {[%clk 0:01:59]}  Rxa2 {[%clk 0:01:11]} 25. Rxd7+ {[%clk 0:01:59]}  Ke8 {[%clk 0:01:08]} 26. Rd8+ {[%clk 0:01:59]}  Rxd8 {[%clk 0:01:08]} 27. Rxd8+ {[%clk 0:02:00]}  Kxd8 {[%clk 0:01:09]} 28. Kxa2 {[%clk 0:02:00]}  Kc7 {[%clk 0:01:03]} 29. Kb3 {[%clk 0:02:00]}  Kc6 {[%clk 0:00:57]} 30. Kc4 {[%clk 0:02:00]}  Bd6 {[%clk 0:00:48]} 31. h3 {[%clk 0:01:55]}  h5 {[%clk 0:00:25]} 32. Ne1 {[%clk 0:01:53]}  Kb6 {[%clk 0:00:11]} 33. Nd3 {[%clk 0:01:49]}  Ka5 {[%clk 0:00:12]} 34. fxe6 {[%clk 0:01:45]}  fxe6 {[%clk 0:00:12]} 35. Nc5 {[%clk 0:01:45]}  Bxc5 {[%clk 0:00:05]} 36. Kxc5 {[%clk 0:01:46]}  h4 {[%clk 0:00:05]} 37. Kd4 {[%clk 0:01:26]}  e5+ {[%clk 0:00:05]} 38. Ke4 {[%clk 0:01:23]}  Kb5 {[%clk 0:00:06]} 39. Kf3 {[%clk 0:01:01]}  f5 {[%clk 0:00:04]} 40. g3 {[%clk 0:00:57]}  e4+ {[%clk 0:00:03]} 41. Kg2 {[%clk 0:00:44]}  hxg3 {[%clk 0:00:02]} 42. h4 {[%clk 0:00:34]}  Kc5 {[%clk 0:00:02]} 43. h5 {[%clk 0:00:34]}  f4 {[%clk 0:00:01]} 44. h6 {[%clk 0:00:34]}  e3 {[%clk 0:00:02]} 45. Kf3 {[%clk 0:00:34]}  g2 {[%clk 0:00:02]} 46. Kxg2 {[%clk 0:00:31]} 1-0


[Site "https://www.chess.com"]

[Event "Titled Tuesday Blitz November 2 2021"]
[White "Svane, Frederik"]
[Black "Pinheiro, Iung Alicio de O."]
[WhiteFideId "12923044"]
[BlackFideId "2104350"]
[WhiteElo "2459"]
[BlackElo "2592"]
[Result "1-0"]
[Round "07"]
[TimeControl "180+1"]
[Date "2021.11.02"]
[WhiteClock "0:01:42"]
[BlackClock "0:00:03"]

1. e4 {[%clk 0:03:00]}  c5 {[%clk 0:02:58]} 2. Nf3 {[%clk 0:03:01]}  d6 {[%clk 0:02:57]} 3. d4 {[%clk 0:03:00]}  cxd4 {[%clk 0:02:58]} 4. Nxd4 {[%clk 0:03:01]}  Nf6 {[%clk 0:02:58]} 5. Nc3 {[%clk 0:03:01]}  Nc6 {[%clk 0:02:58]} 6. Bg5 {[%clk 0:03:01]}  e6 {[%clk 0:02:59]} 7. Qd2 {[%clk 0:03:01]}  a6 {[%clk 0:02:59]} 8. O-O-O {[%clk 0:03:02]}  Bd7 {[%clk 0:02:59]} 9. f4 {[%clk 0:03:02]}  b5 {[%clk 0:02:51]} 10. f5 {[%clk 0:02:59]}  Qb6 {[%clk 0:02:10]} 11. Nxc6 {[%clk 0:02:59]}  Bxc6 {[%clk 0:02:09]} 12. Bxf6 {[%clk 0:02:59]}  gxf6 {[%clk 0:02:09]} 13. fxe6 {[%clk 0:03:00]}  fxe6 {[%clk 0:02:10]} 14. Kb1 {[%clk 0:03:00]}  O-O-O {[%clk 0:02:09]} 15. Qe1 {[%clk 0:02:54]}  h5 {[%clk 0:01:59]} 16. Ne2 {[%clk 0:02:51]}  Bh6 {[%clk 0:01:42]} 17. Nd4 {[%clk 0:02:43]}  Bd7 {[%clk 0:01:41]} 18. g3 {[%clk 0:02:42]}  h4 {[%clk 0:01:27]} 19. Bh3 {[%clk 0:02:40]}  Rde8 {[%clk 0:01:24]} 20. Qc3+ {[%clk 0:02:34]}  Kb8 {[%clk 0:01:24]} 21. Qb3 {[%clk 0:02:35]}  f5 {[%clk 0:00:48]} 22. exf5 {[%clk 0:02:27]}  e5 {[%clk 0:00:48]} 23. Ne6 {[%clk 0:02:28]}  Be3 {[%clk 0:00:41]} 24. Bg2 {[%clk 0:02:25]}  hxg3 {[%clk 0:00:33]} 25. Qd5 {[%clk 0:02:15]}  Ka7 {[%clk 0:00:31]} 26. hxg3 {[%clk 0:02:12]}  Rc8 {[%clk 0:00:12]} 27. Rxh8 {[%clk 0:01:56]}  Rxh8 {[%clk 0:00:11]} 28. a3 {[%clk 0:01:56]}  Rc8 {[%clk 0:00:10]} 29. Qxd6 {[%clk 0:01:52]}  Qxd6 {[%clk 0:00:08]} 30. Rxd6 {[%clk 0:01:53]}  Be8 {[%clk 0:00:08]} 31. g4 {[%clk 0:01:48]}  Bb6 {[%clk 0:00:05]} 32. g5 {[%clk 0:01:44]}  Rd8 {[%clk 0:00:02]} 33. Nxd8 {[%clk 0:01:42]}  Bxd8 {[%clk 0:00:03]} 34. Rxd8 {[%clk 0:01:42]} 1-0


[Site "https://www.chess.com"]

[Event "Titled Tuesday Blitz November 2 2021"]
[White "Sviridov, Valery"]
[Black "Urazayev, Arystanbek"]
[WhiteFideId "4120680"]
[BlackFideId "13709810"]
[WhiteElo "2454"]
[BlackElo "2321"]
[Result "1/2-1/2"]
[Round "07"]
[TimeControl "180+1"]
[Date "2021.11.02"]
[WhiteClock "0:00:13"]
[BlackClock "0:00:05"]

1. Nf3 {[%clk 0:03:00]}  d5 {[%clk 0:03:00]} 2. g3 {[%clk 0:03:01]}  Nf6 {[%clk 0:03:00]} 3. Bg2 {[%clk 0:03:01]}  e6 {[%clk 0:03:00]} 4. O-O {[%clk 0:03:01]}  Be7 {[%clk 0:03:01]} 5. c4 {[%clk 0:03:01]}  O-O {[%clk 0:03:01]} 6. d4 {[%clk 0:03:02]}  b6 {[%clk 0:03:02]} 7. cxd5 {[%clk 0:03:01]}  exd5 {[%clk 0:03:03]} 8. Nc3 {[%clk 0:03:01]}  Bb7 {[%clk 0:03:03]} 9. b3 {[%clk 0:03:02]}  Na6 {[%clk 0:03:04]} 10. Bb2 {[%clk 0:03:02]}  c5 {[%clk 0:03:04]} 11. Rc1 {[%clk 0:03:02]}  h6 {[%clk 0:03:05]} 12. dxc5 {[%clk 0:03:01]}  Nxc5 {[%clk 0:03:04]} 13. Nd4 {[%clk 0:02:59]}  Re8 {[%clk 0:03:03]} 14. Nf5 {[%clk 0:02:50]}  Bf8 {[%clk 0:03:01]} 15. Ne3 {[%clk 0:02:50]}  d4 {[%clk 0:02:59]} 16. Bxb7 {[%clk 0:02:29]}  Nxb7 {[%clk 0:02:58]} 17. Nb5 {[%clk 0:02:29]}  dxe3 {[%clk 0:02:58]} 18. Nc7 {[%clk 0:02:30]}  exf2+ {[%clk 0:02:59]} 19. Kg2 {[%clk 0:02:24]}  Qxd1 {[%clk 0:02:40]} 20. Rcxd1 {[%clk 0:02:25]}  Ng4 {[%clk 0:02:34]} 21. Bc1 {[%clk 0:02:05]}  Bc5 {[%clk 0:02:18]} 22. Nxa8 {[%clk 0:02:03]}  Rxa8 {[%clk 0:02:19]} 23. b4 {[%clk 0:01:51]}  Bxb4 {[%clk 0:02:11]} 24. Rd4 {[%clk 0:01:51]}  Nxh2 {[%clk 0:01:56]} 25. Kxh2 {[%clk 0:01:52]}  Bc5 {[%clk 0:01:56]} 26. Rd7 {[%clk 0:01:52]}  Nd6 {[%clk 0:01:55]} 27. Kg2 {[%clk 0:01:46]}  Ne4 {[%clk 0:01:43]} 28. Bf4 {[%clk 0:01:39]}  a5 {[%clk 0:01:38]} 29. Rfd1 {[%clk 0:01:37]}  g5 {[%clk 0:01:31]} 30. Be5 {[%clk 0:01:35]}  Re8 {[%clk 0:01:05]} 31. Rd8 {[%clk 0:01:35]}  Rxd8 {[%clk 0:01:06]} 32. Rxd8+ {[%clk 0:01:35]}  Kh7 {[%clk 0:01:07]} 33. g4 {[%clk 0:01:36]}  f6 {[%clk 0:01:04]} 34. Bd4 {[%clk 0:01:34]}  Kg6 {[%clk 0:00:34]} 35. Bxc5 {[%clk 0:01:32]}  bxc5 {[%clk 0:00:33]} 36. Re8 {[%clk 0:01:33]}  Nc3 {[%clk 0:00:26]} 37. Kxf2 {[%clk 0:01:27]}  Nxa2 {[%clk 0:00:23]} 38. Rg8+ {[%clk 0:01:27]}  Kf7 {[%clk 0:00:23]} 39. Ra8 {[%clk 0:01:28]}  Nc3 {[%clk 0:00:18]} 40. Rxa5 {[%clk 0:01:28]}  Ke6 {[%clk 0:00:14]} 41. Kf3 {[%clk 0:01:28]}  Kd6 {[%clk 0:00:13]} 42. Ra6+ {[%clk 0:01:28]}  Ke5 {[%clk 0:00:14]} 43. Rc6 {[%clk 0:01:21]}  Ne4 {[%clk 0:00:13]} 44. Ke3 {[%clk 0:01:19]}  Kd5 {[%clk 0:00:12]} 45. Rc8 {[%clk 0:01:18]}  Nd6 {[%clk 0:00:12]} 46. Rh8 {[%clk 0:01:18]}  Nc4+ {[%clk 0:00:09]} 47. Kf3 {[%clk 0:01:18]}  Ne5+ {[%clk 0:00:10]} 48. Kg3 {[%clk 0:01:11]}  c4 {[%clk 0:00:10]} 49. Kf2 {[%clk 0:00:43]}  Nxg4+ {[%clk 0:00:10]} 50. Kf3 {[%clk 0:00:43]}  Ne5+ {[%clk 0:00:10]} 51. Ke3 {[%clk 0:00:44]}  Ng4+ {[%clk 0:00:09]} 52. Kf3 {[%clk 0:00:44]}  f5 {[%clk 0:00:07]} 53. e4+ {[%clk 0:00:42]}  Ke5 {[%clk 0:00:06]} 54. Re8+ {[%clk 0:00:39]}  Kf6 {[%clk 0:00:04]} 55. Rf8+ {[%clk 0:00:38]}  Kg6 {[%clk 0:00:03]} 56. exf5+ {[%clk 0:00:36]}  Kg7 {[%clk 0:00:03]} 57. Rc8 {[%clk 0:00:36]}  Ne5+ {[%clk 0:00:04]} 58. Ke4 {[%clk 0:00:37]}  Nf7 {[%clk 0:00:04]} 59. Rc6 {[%clk 0:00:35]}  h5 {[%clk 0:00:05]} 60. Ke3 {[%clk 0:00:24]}  h4 {[%clk 0:00:05]} 61. Rxc4 {[%clk 0:00:18]}  Kf6 {[%clk 0:00:04]} 62. Rc5 {[%clk 0:00:19]}  Nd6 {[%clk 0:00:05]} 63. Rc6 {[%clk 0:00:16]}  Ke5 {[%clk 0:00:05]} 64. Rc5+ {[%clk 0:00:16]}  Kf6 {[%clk 0:00:04]} 65. Rc6 {[%clk 0:00:13]}  Ke5 {[%clk 0:00:05]} 66. Rc5+ {[%clk 0:00:13]}  Kf6 {[%clk 0:00:05]} 1/2-1/2


[Site "https://www.chess.com"]